Cogmind - Beta 15 @@@ ROGUE MODE // 2025.06.09 @ 20:15:32 Player: Minty Result: Destroyed by OH-BZV(R) with Subdweller Machine Gun Performance ------------- Evolutions (0) 0 Regions Visited (2) 400 Robots Destroyed (18) 90 Value Destroyed (424) 424 Prototype IDs (0) 0 Alien Tech Used (0) 0 Bonus (0) 0 TOTAL SCORE: 914 Bonus ------- None Cogmind --------- Core Integrity 0/250 Matter 300/300 Energy 250/250 System Corruption 14% Temperature Cool (0) Movement Rolling (95) Ox1 Location -10/Subcaves Parts ------- > --- POWER (1) -------- Ion Engine > --- PROPULSION (2) --- Wheel Wheel > --- UTILITY (2) ------ Large Storage Unit Structural Scanner > --- WEAPON (2) ------- Hammer > --- INVENTORY (15) --- Ion Engine Light Treads Aluminum Leg Compact Wheel Heat Sink Large Matter Pod (150) Machine Analyzer Terrain Scan Processor Datajack Peak State ------------ > --- POWER ------------ Light Nuclear Core > --- PROPULSION ------- Aluminum Leg Aluminum Leg > --- UTILITY ---------- Small Storage Unit Structural Scanner > --- WEAPON ----------- Assault Rifle Assault Rifle > --- INVENTORY -------- Ion Engine Light Treads Light Treads Wheel Compact Wheel Large Matter Pod Machine Analyzer Terrain Scan Processor [Rating: 10] Favorites ----------- Power Light Nuclear Core Engine Ion Engine Power Core Light Nuclear Core Propulsion Aluminum Leg Treads Light Treads Leg Aluminum Leg Wheel Wheel Utility Structural Scanner Device Structural Scanner Storage Large Storage Unit Protection Light Armor Plating Weapon EM Pulse Gun Energy Gun EM Pulse Gun Ballistic Gun Assault Rifle Impact Weapon Hammer Build | -11 -10 -10 ------- Run | Yrd Mat Sub Slots Evolved . | . . . Power . | . . . Propulsion . | . . . Utility . | . . . Weapon . | . . . Parts Attached 19 | . 12 7 Power 2 | . 1 1 Engine 1 | . . 1 Core 1 | . 1 . Reactor . | . . . Propulsion 9 | . 5 4 Treads 2 | . . 2 Leg 5 | . 5 . Wheel 2 | . . 2 Hover . | . . . Flight . | . . . Utility 3 | . 2 1 Device 1 | . 1 . Storage 1 | . 1 . Processor . | . . . Hackware . | . . . Protection 1 | . . 1 Artifact . | . . . Weapon 5 | . 4 1 Energy Gun 2 | . 2 . Energy Cannon . | . . . Ballistic Gun 2 | . 1 1 Ballistic Cannon . | . . . Launcher . | . . . Special Weapon . | . . . Impact Weapon 1 | . 1 . Slashing Weapon . | . . . Piercing Weapon . | . . . Special Melee Weapon . | . . . Unidentified Prototypes . | . . . Corrupted Parts 1 | . . 1 System Corruption 14 | . . 14 Parts Lost 9 | . 1 8 Power 1 | . . 1 Propulsion 3 | . 1 2 Utility 1 | . . 1 Weapon 4 | . . 4 Highest Loss Streak 2 | . 1 2 To Critical Strikes . | . . . Average Backups 11 | 6 11 12 Power 1 | 1 1 1 Propulsion 4 | 4 5 4 Utility 3 | . 3 4 Weapon 1 | 1 1 1 Tool/Special . | . . . Unused Backups 13 | . 7 6 Power 4 | . 3 1 Propulsion . | . . . Utility 6 | . 2 4 Weapon 2 | . 2 . Tool/Special 1 | . . 1 Average Slot Usage (%) 97 | . 99 95 Engine 5 | . 4 6 Core 8 | . 9 7 Treads 5 | . . 10 Leg 21 | . 27 16 Device 12 | . 13 11 Storage 14 | . 14 14 Protection 1 | . . 2 Energy Gun 12 | . 12 13 Ballistic Gun 9 | . 15 4 Impact Weapon 3 | . . 7 Peak Build Rating 10 | 6 10 10 Average Rating 9 | 6 9 8 On Entrance 7 | 6 6 10 Naked Turns . | . . . Heaviest Build 34 | 13 30 34 Greatest Support 40 | 20 20 40 Greatest Overweight (x) 2 | . 2 2 Average Overweight (x) . | . . . Largest Inventory Capacity 15 | 8 15 15 Average Capacity 13 | 8 12 15 Most Carried 15 | 6 15 14 Average Carried 11 | 6 11 12 Final Capacity 15 | 8 15 15 Final Carried 13 | 6 13 9 Class Distribution -------------------- 55% | Mutant 44% | Scavenger-Mutant Dominant Class ---------------- Mutant | -10/Materials Scavenger-Mutant | -10/Subcaves Resources | -11 -10 -10 ----------- Run | Yrd Mat Sub Matter Collected 791 | 200 426 165 Remotely . | . . . Salvage Created 922 | . 542 380 Parts 49 | . 33 16 Haulers Intercepted 1 | . 1 . Recyclers Shooed 1 | . 1 . Parts Field Recycled . | . . . Retrieved Matter . | . . . Parts Self-Destructed 6 | . . 6 Prevented . | . . . Kills | -11 -10 -10 ------- Run | Yrd Mat Sub Combat Hostiles Destroyed 12 | . 7 5 Melee 1 | . . 1 Guns 7 | . 6 1 AOE 1 | . 1 . Classes Destroyed 8 | . 6 2 Tunneler 1 | . 1 . Hauler 1 | . 1 . Recycler 3 | . 3 . Mechanic 1 | . 1 . Swarmer 3 | . 3 . Grunt 4 | . 4 . Sentry 1 | . . 1 Subdweller 4 | . . 4 Best Kill Streak 5 | . 5 1 Combat Bots Only 5 | . 5 1 Max Kills in Single Turn 2 | . 2 1 Gunslinging 1 | . 1 . Exploded 1 | . 1 . Melee 1 | . . 1 Uniques/NPCs Destroyed . | . . . Combat | -11 -10 -10 -------- Run | Yrd Mat Sub Hostile Shots Fired 109 | . 44 65 Missed 35 | . 14 21 Hits 74 | . 30 44 Projectile 74 | . 30 44 Critical Strikes 1 | . . 1 Damage Taken 1465 | . 398 1067 Core 272 | . 38 234 Absorbed by Shields . | . . . Core Remaining (%) 100 | 100 . . Volleys Fired 64 | . 41 23 Largest 2 | . 2 2 Hottest 80 | . 80 80 Shots Fired 123 | . 82 41 Gun 123 | . 82 41 Cannon . | . . . Launcher . | . . . Special . | . . . Kinetic 72 | . 65 7 Thermal . | . . . Explosive . | . . . Electromagnetic 51 | . 17 34 Robot Hit Streak 17 | . 9 17 Robot Miss Streak 5 | . 5 1 Penetration Max . | . . . Secondary Targets 1 | . 1 . Max Gunslinging Chain 1 | . 1 . Shots Hit Robots 120 | . 48 72 Core Hits 30 | . 21 9 Critical Kills . | . . . Critical Parts Destroyed . | . . . Critical Strikes 3 | . . 3 Corrupt 3 | . . 3 Melee Attacks 47 | . 4 43 Impact 47 | . 4 43 Slashing . | . . . Piercing . | . . . Sneak Attacks . | . . . Combat Hostiles . | . . . Follow-up Attacks . | . . . Damage Inflicted 1971 | . 688 1283 Guns 1078 | . 614 464 Cannons . | . . . Explosions 66 | . 66 . Melee 819 | . . 819 Ramming 8 | . 8 . Kinetic 594 | . 481 113 Thermal 66 | . 66 . Explosive . | . . . Electromagnetic 484 | . 133 351 Impact 819 | . . 819 Slashing . | . . . Piercing . | . . . Highest Corruption 14 | . . 14 Average Corruption 14 | . . 14 Corruption Purged . | . . . Corruption Blocked . | . . . Effects 15 | . . 15 Message Errors 8 | . . 8 Matter Fused 2 | . . 2 Heat Flow Errors 1 | . . 1 Energy Discharges 2 | . . 2 Data Loss (major) 1 | . . 1 Misfires 1 | . . 1 Overload Shots . | . . . Overflow Damage 134 | . 20 114 Projectiles . | . . . Explosions 20 | . 20 . Melee 114 | . . 114 Knockbacks 4 | . . 4 Impact 4 | . . 4 Kinetic . | . . . Secondary . | . . . Self-Inflicted Damage 38 | . 38 . Shots 1 | . 1 . Rammed . | . . . Targets Rammed 4 | . 4 . Kicked 4 | . 4 . Crushed . | . . . Highest Temperature 258 | . 56 258 Average Temperature 34 | . 16 133 Received Heat Transfer 135 | . 90 45 Siege Activations . | . . . Martial Activations . | . . . Shielding Activations . | . . . Robots Disrupted . | . . . Combat Hostiles . | . . . Robots Corrupted 5 | . . 5 Combat Hostiles 5 | . . 5 Parts Fried 7 | . . 7 Impact Corruptions 7 | . . 7 Robots Melted . | . . . Combat Hostiles . | . . . Parts Melted . | . . . Heat Transferred 50 | . 50 . Parts Sabotaged . | . . . Parts Stolen . | . . . Parts Stripped . | . . . Power Chain Reactions 2 | . 2 . Alert | -11 -10 -10 ------- Run | Yrd Mat Sub Maximum Alert Level . | . . . Low Security (%) 100 | 100 100 . Level 1 . | . . . Level 2 . | . . . Level 3 . | . . . Level 4 . | . . . Level 5 . | . . . High Security . | . . . Max Security . | . . . Peak Influence 150 | . 150 . Initial . | . . . Average 39 | . 39 . Influence Increases 282 | . 262 20 Destroy 0b10 Robot/C 160 | . 140 20 Destroy 0b10 Robot/NC 30 | . 30 . Destroy Leader 32 | . 32 . Successful Hack 20 | . 20 . Select Force Hacks 30 | . 30 . Destroy Structure 10 | . 10 . Influence Decreases 282 | . 262 20 Time Decay 272 | . 252 20 Lost Part 10 | . 10 . Squads Dispatched 1 | . 1 . Investigation 1 | . 1 . Extermination . | . . . Reinforcement . | . . . Assault . | . . . Garrison . | . . . Intercept . | . . . Searches Triggered . | . . . Construction Impeded . | . . . Haulers Reinforced . | . . . Active Scanning Responses . | . . . Cargo Convoy Interrupts . | . . . Stealth | -11 -10 -10 --------- Run | Yrd Mat Sub Distress Signals . | . . . Communications Jammed . | . . . Distress Signals . | . . . Times Spotted 23 | . 14 9 Peak Tracking Total 3 | . 3 2 Tactical Retreats . | . . . Traps | -11 -10 -10 ------- Run | Yrd Mat Sub Traps Triggered 4 | . 1 3 Indirectly . | . . . Trap Hack Attempts . | . . . Triggered . | . . . Disarmed . | . . . Reprogrammed . | . . . Reused . | . . . Traps Extracted . | . . . Installed . | . . . Triggered . | . . . Machines | -11 -10 -10 ---------- Run | Yrd Mat Sub Machines Disabled . | . . . Max in Single Turn . | . . . Machines Repaired . | . . . Machines Dismantled . | . . . Machines Sabotaged . | . . . Overloaded Fab Kills . | . . . Hacking | -11 -10 -10 --------- Run | Yrd Mat Sub Machines Accessed 5 | . 5 . Terminals 4 | . 4 . Fabricators . | . . . Repair Stations . | . . . Recycling Units 1 | . 1 . Scanalyzers . | . . . Garrison Access . | . . . Total Hacks 17 | . 17 . Successful 7 | . 7 . Failed 10 | . 10 . Catastrophic 1 | . 1 . Database Lockouts . | . . . Manual 8 | . 8 . Terminals 13 | . 13 . Fabricators . | . . . Repair Stations . | . . . Recycling Units 4 | . 4 . Scanalyzers . | . . . Garrison Access . | . . . Terminal Hacks 3 | . 3 . Patrol Status 1 | . 1 . Zone Layout 2 | . 2 . Fabricator Hacks . | . . . Repair Station Hacks . | . . . Recycling Unit Hacks 2 | . 2 . Process 1 | . 1 . Retrieve Matter 1 | . 1 . Scanalyzer . | . . . Garrison Access Hacks . | . . . Unauthorized Hacks 2 | . 2 . Terminals 1 | . 1 . Botnet 1 | . 1 . Fabricators . | . . . Repair Stations . | . . . Recycling Units 1 | . 1 . Tunnel 1 | . 1 . Scanalyzers . | . . . Garrison Access . | . . . Data Cores Recovered . | . . . Used . | . . . Hacking Detections 4 | . 4 . Full Trace Events 1 | . 1 . Feedback Events . | . . . Feedback Blocked . | . . . Robot Schematics Acquired . | . . . Robots Built . | . . . Authchips . | . . . Time . | . . . Total Robot Build Rating . | . . . Part Schematics Acquired . | . . . Parts Built . | . . . Authchips . | . . . Time . | . . . Total Part Build Rating . | . . . Parts Repaired . | . . . Time . | . . . Parts Recycled . | . . . Recycled Matter 50 | . 50 . Retrieved Matter 50 | . 50 . Retrieved Components . | . . . Parts Scanalyzed . | . . . Part Schematics Acquired . | . . . Parts Damaged . | . . . Bothacking | -11 -10 -10 ------------ Run | Yrd Mat Sub Used RIF Installer . | . . . Robots Hacked . | . . . Non-combat . | . . . Combat . | . . . Robot Hacks Applied . | . . . Relay Couplers Released . | . . . Fabnet Peak Effective % . | . . . Robots Rewired . | . . . Allies Hacked . | . . . Hacks Repelled . | . . . Allies | -11 -10 -10 -------- Run | Yrd Mat Sub Total Allies . | . . . Largest Group . | . . . Highest-Rated Group . | . . . Highest-Rated Ally . | . . . Total Orders . | . . . Ally Attacks . | . . . Total Damage . | . . . Kills . | . . . Allies Corrupted . | . . . Allies Melted . | . . . Intel | -11 -10 -10 ------- Run | Yrd Mat Sub Active Infowar (turns) 1539 | . 818 721 Structural 1539 | . 818 721 Robot Analysis Total . | . . . Derelict Logs Recovered 1 | . . 1 Drone Launches . | . . . Drone Recoveries . | . . . Exploration | -11 -10 -10 ------------- Run | Yrd Mat Sub Turns Passed 1741 | 2 844 895 Spaces Moved 793 | 2 408 383 Core . | . . . Treads 150 | . . 150 Legs 629 | 2 408 219 Wheels 14 | . . 14 Hover . | . . . Flight . | . . . Fastest Speed 95 | 120 120 95 Average Speed 168 | 120 163 175 Slowest Speed 260 | 120 260 260 Overloaded Moves . | . . . Propulsion Burnouts . | . . . Robots Hopped . | . . . Potential Cave-ins . | . . . Cave-ins Triggered . | . . . Exploration Rate (%) 34 | 2 67 33 Regions Visited 2 Branch Regions 1 Pre-discovered Areas 3 | . 1 2 Known Exits Taken . | . . . Unknown Exits Taken 2 | 1 1 . Scrap Searched . | . . . Spaces Dug 2 | . 2 . Terrain Destroyed 9 | . 9 . Melee 2 | . 2 . Projectile . | . . . AOE 7 | . 7 . Terrain Rammed . | . . . Walls Destroyed . | . . . Machines Disabled . | . . . Actions | -11 -10 -10 --------- Run | Yrd Mat Sub Total 980 | 1 496 483 Wait 17 | . 2 15 Move 791 | 1 407 383 Hop . | . . . Pick Up 14 | . 12 2 Fast Attach 3 | . 1 2 Attach 11 | . 4 7 Detach 2 | . . 2 Swap 17 | . 13 4 Drop 9 | . 8 1 Fire 64 | . 41 23 Melee 47 | . 4 43 Ram . | . . . Kick 4 | . 4 . Crush . | . . . Escape Stasis . | . . . Rewire 1 | . . 1 Trap . | . . . Miscellaneous . | . . . Route ------- -11/Scrapyard -10/Materials (discovered 2 exits: [*Min] / [*Sub]) -10/Subcaves History --------- Turn | Location | Event 1 | -11/Scrapyard | Discovered new exit (range 1) 3 | -11/Scrapyard | Entered Materials 63 | -10/Materials | Discovered new exit (range 12) 745 | -10/Materials | Discovered new exit (range 8) 847 | -10/Materials | Entered Subcaves 1000 | -10/Subcaves | Build established: Scavenger-Mutant 1302 | -10/Subcaves | Core integrity fell below 50% 1392 | -10/Subcaves | System corruption reached 10% 1467 | -10/Subcaves | Learned location of Zion (-6) 1467 | -10/Subcaves | Met a Zionite searching for "candidates" 1605 | -10/Subcaves | Build established: Mutant 1706 | -10/Subcaves | Core integrity fell below 20% 1726 | -10/Subcaves | Shifting Twisted Machinery released Battle Rifle 1739 | -10/Subcaves | Shifting Twisted Machinery released Mak. Light Armor Plating 1742 | -10/Subcaves | Destroyed by OH-BZV(R) with Subdweller Machine Gun Last Messages --------------- 01675_ Acquired 2 matter. 01679_ Aluminum Leg fries itself beyond repair. 01679_ Sml. Laser fries itself beyond repair. 01679_ Sub. Machine Gun destroyed. 01680_ Destroyed Disposable Heat Sink. 01680_ 35-FR0(R) system corrupted by crushing effect. 01680_ 35-FR0(R) knocked back. 01687_ /XF8MVEXE|HMKDY60NDH=VO5QNW 01696_ 35-FR0(R) misfires. 01704_ System corrupted: Energy discharge (-60). 01711_ Destroyed Sub. Monowheel. 01711_ 35-FR0(R) system corrupted by crushing effect. 01711_ 35-FR0(R) misfires. 01711_ Lgt. Treads destroyed. 01712_ 35-FR0(R) system terminally corrupted. 01712_ Sub. Optics fried. 01717_ Acquired 10 matter. 01724_ S#61|U O&Y UQQO0JSHS>KDCO1BSC7O/OY8#UPW Battle Rifle falls loose from the Twisted Machinery. Mak. Light Armor Plating falls loose from the Twisted Machinery. Map ----- +----------------------------------------------------+ | ??????????????????????????????????????????? | | ??????????????????????????????????????????? | | ??????????????????????????????????????????? | | ??????????????????????????????????????????? | | ??????????????????????????????????????????? | | ??????????????????????????????????????????? | | ??????????????????????????????????????????? | | ??????????????????????????????????????????? | | ??????????????????????????????????????????? | | ??????????????????????????????????????????? | | ??????????????????????????????????????????? | | ??????????????????????????????????????????? | | ???????????????? ?????????????????????????? | | ???????????????? ????????????????????????? | | ???????????????? ? ??????????????????????? | | ???????????????? ? ??????????????????????? | | ???????????????? ###???????????????????? | | ???????????????? ! #####?????????????????? | | ???????????????#" "" ####?????????????????? | | ???????????????## " "###????????????????? | | ??????????????### "" ##????????????????? | | ??????????????### """ ##????????????????? | | ??????????????##" """" ##????????????????? | | ??????????????###"" #" ###########???####? | | ??????????????##"R " ############??## #? | | ??????????????### @## #### &##"""##??# #? | | ??????????????## # #####% "###??# #? | | ??????????????## #### ###### #? | | ??????????????### R" ## # # ## | | ??????????????###["##""" "### # | | ???????????????## ""###""" ### # | | ???????????????##"""## #### #### # | | ??????????????## # #### "" % #### # | | ??????????????### ## #### "" %####?# # | | ??????????????### ##### ""%###### " # | | ???????????????## ## "" #?## "## | | ???????????????# # #?# #? | | ???????????????# ## # #### %#?# #? | | ???????????????######## #???# #?## ## | | ???????????????####### ?????# #?### # | | ?????????????????????? ??????# #??##" # | | ????????????????????? ???????## #### """ | | ??????????????????????????????? #" "" | | ???????????????????????????????# " "" | | ???????????????????????????????? ### "" | | ????????????????????????????????????## """" | | ?????????????????????????????????????## | | ??????????????????????????????????????### | | ????????????????????????????????????????### | | ??????????????????????????????????????????? | +----------------------------------------------------+ Best States ------------- Heat Dissipation 25 Energy Generation 14 Energy Capacity 250 Matter Stores 300 Matter Capacity 300 Sight Range 16 Terrain Scan Density 10 Armor Coverage 150 Evasion (%) 55 Recoil Reduction 2 Item Schematics ----------------- None Robot Schematics ------------------ None Fabricated ------------ Nothing Repaired ---------- Nothing Alien Tech Used ----------------- None Achievements -------------- None Challenges ------------ None Game ------ Seed CobblerSniperLaser Manual? 0 Play Time 00:11:54 Cumulative 1096.0 hours Start 2025.06.09 @ 20:01:36 End 2025.06.09 @ 20:15:32 Sessions 1 Manual Loads 0 Difficulty Rogue Special Mode None Game No. 1353 Rogue 1069 Adventurer 124 Explorer 160 Win Type - Total 49 Types 35/0/8/4/1/0/0/1/0/0 Lore% 92 Gallery% 87 Achievement% 81 Wizard Run 0 Options --------- Layout 0 ASCII 0 Keyboard 1 Movement Numpad Keybinds 0 Fullscreen 2 Font 18/X11 Map View 76x50 Zoom Use 0% Tactical HUD 1 Map Filters NONE Filters NONE Steam 1 RUN: 41e21e3c-313e-40f0-b2fe-8c360abf7371